bitfinex/quotes_ETHUSD_20251008
["timestamp","ask_amount","ask_price","bid_price","bid_amount"]
[1759896966035,0.002,4450.1,4450.0,6.36504931]
[1759896966963,0.002,4450.1,4450.0,2.24719101]
[1759896967122,0.002,4450.1,4448.8,1.20953188]
[1759896967330,0.002,4450.1,4448.9,2.551]
[1759896967567,0.002,4450.1,4449.5,2.24743629]
[1759896967770,0.002,4450.1,4448.1,1.21953188]
[1759896968065,0.469,4450.0,4449.2,2.24754683]
[1759896968374,0.469,4450.0,4449.3,4.79853254]
[1759896968534,0.469,4450.0,4449.6,0.001]
[1759896968735,0.469,4449.9,4449.6,0.001]
[1759896968952,0.469,4449.8,4449.7,2.551]
[1759896969854,0.469,4449.8,4449.6,0.001]
[1759896970057,2.24728316,4449.9,4449.7,2.551]
[1759896970225,1.922,4450.1,4449.7,2.551]
[1759896970226,0.20965303,4449.8,4449.7,2.551]
[1759896970626,0.67865303,4449.8,4449.7,2.551]
[1759896971373,4.84594504,4449.8,4449.7,2.551]
[1759896971573,5.32895656,4449.8,4449.6,0.001]
[1759896971873,4.86000706,4449.7,4449.6,0.001]
[1759896972326,2.45699554,4449.7,4449.6,0.001]
[1759896972531,0.67865303,4449.7,4449.6,0.001]
[1759896972725,0.20965303,4449.7,4449.6,0.001]
[1759896972929,0.002,4450.1,4449.6,2.270858]
[1759896973172,0.002,4450.1,4449.6,0.02347393]
[1759896973336,0.002,4450.1,4449.6,0.001]
[1759896973557,0.469,4450.0,4449.7,2.551]
[1759896973743,0.469,4449.9,4449.7,2.551]
[1759896973943,2.24915792,4450.1,4449.7,2.551]
[1759896973944,0.469,4449.8,4449.7,2.551]
[1759896974447,1.769,4449.8,4449.7,2.551]
[1759896974691,1.97860512,4449.8,4449.7,2.551]
[1759896974859,1.3,4449.8,4449.7,2.551]
[1759896975887,1.3,4449.8,4449.7,4.82081593]
[1759896976049,1.3,4449.8,4449.7,4.79834251]
[1759896977229,1.3,4449.8,4449.7,2.551]
[1759896977347,1.3,4449.8,4449.7,4.79834251]
[1759896977760,1.3,4449.8,4449.7,2.551]
[1759896977948,1.3,4449.8,4449.7,4.79834251]
[1759896979905,1.3,4449.8,4449.7,4.91034251]
[1759896980061,1.3,4449.8,4449.7,5.62621841]
[1759896981340,1.3,4449.8,4449.7,4.91034251]
[1759896984852,0.002,4450.1,4450.0,2.24719101]
[1759896985176,0.002,4450.1,4450.0,5.54379101]
[1759896985377,2.24634998,4451.7,4450.0,3.1846]
[1759896985584,2.52076031,4451.8,4450.9,2.24668681]
[1759896985746,2.52076031,4451.8,4451.0,2.551]
[1759896985747,0.75776967,4451.8,4451.0,2.551]
[1759896985950,2.2462824,4451.8,4451.1,2.551]
[1759896986252,2.2462824,4451.8,4451.2,2.551]
[1759896986451,0.48329663,4451.8,4451.2,2.551]
[1759896986672,2.2464413,4451.5,4451.2,2.551]
[1759896987273,2.24649206,4451.4,4451.2,2.551]
[1759896987471,2.3607,4451.3,4451.2,2.551]
[1759896987656,2.68723472,4451.3,4451.2,2.551]
[1759896987857,0.4407,4451.3,4451.2,2.551]
[1759896988572,0.4407,4451.3,4449.6,0.1673]
[1759896988573,0.002,4451.0,4449.6,0.001]
[1759896988744,2.68747673,4450.9,4449.7,4.79834102]
[1759896988940,4.16683291,4450.8,4450.0,2.24718948]
[1759896989144,2.24684381,4450.7,4450.1,2.551]
[1759896989368,4.16679692,4450.8,4450.1,2.551]
[1759896989741,0.4407,4450.9,4450.1,2.551]
[1759896989943,0.002,4451.0,4450.2,2.26956091]
[1759896990157,0.002,4451.0,4450.1,4.79812962]
[1759896990351,0.002,4451.0,4450.1,2.551]
[1759896990561,0.002,4451.0,4450.2,0.0224709]
[1759896990969,0.002,4451.0,4450.1,2.551]
[1759896991163,0.002,4451.0,4450.5,2.24691637]
[1759896991373,0.4427,4451.0,4450.6,2.551]
[1759896991549,0.4407,4450.9,4449.6,0.001]
[1759896991749,0.4407,4450.9,4449.7,1.552]
[1759896991949,2.24677539,4450.9,4449.8,0.18877292]
[1759896992171,0.002,4451.0,4449.8,0.18877292]
[1759896992379,0.002,4451.0,4450.5,2.24690694]
[1759896992677,0.002,4451.0,4449.8,0.1663]
[1759896992678,0.002,4451.0,4450.6,2.551]
[1759896992862,0.002,4451.0,4450.7,2.551]
[1759896993065,0.002,4451.0,4450.8,2.551]
[1759896993681,0.4427,4451.0,4450.8,2.551]
[1759896995051,0.002,4451.0,4450.8,4.79773818]
[1759896995250,0.002,4451.0,4450.8,2.551]
[1759896995476,0.002,4451.0,4450.8,4.79777847]
[1759896995661,0.002,4451.0,4450.8,2.551]
[1759896995856,0.002,4451.0,4450.8,4.79776652]
[1759896996061,0.002,4451.0,4450.8,4.79777435]
[1759896996461,0.002,4451.0,4450.9,2.24673661]
[1759896996676,0.002,4451.0,4450.9,2.35873661]
[1759896996851,0.002,4451.0,4450.9,2.24673661]
[1759896997502,0.002,4451.0,4450.9,2.94191564]
[1759896998257,0.002,4451.0,4450.9,3.55304828]
[1759896998453,0.002,4451.0,4450.9,3.57551564]
[1759896999190,0.002,4451.0,4450.9,3.55304828]
[1759896999357,0.002,4451.0,4450.9,2.91944828]
[1759896999562,0.002,4451.0,4450.9,2.75314828]
[1759896999766,0.002,4451.0,4449.9,2.41353215]
[1759896999972,0.002,4451.0,4450.2,2.41339001]
[1759897000287,0.002,4451.0,4450.9,2.24673661]
[1759897000477,0.002,4451.0,4450.9,4.79673661]
[1759897002093,0.002,4451.0,4450.9,2.55]
[1759897002263,0.002,4451.0,4450.9,4.79673661]
[1759897002874,0.002,4451.0,4450.9,2.55]
[1759897003074,0.002,4451.0,4450.9,4.79673661]
[1759897004093,0.002,4451.0,4450.9,5.66739021]
[1759897005093,0.002,4451.0,4450.9,6.30099021]
[1759897005892,0.002,4451.0,4450.9,20.80099021]
[1759897006792,0.002,4451.0,4450.9,20.91299021]
[1759897007505,0.002,4451.0,4450.9,22.83299021]
[1759897008714,0.002,4451.0,4450.9,8.33299021]
[1759897009070,0.002,4451.0,4450.9,22.83299021]
[1759897010376,0.002,4451.0,4450.9,22.19939021]
[1759897011107,0.002,4451.0,4450.9,7.69939021]
[1759897011601,0.002,4451.0,4450.9,8.33299021]
[1759897012003,0.002,4451.0,4450.9,8.54266732]
[1759897013624,0.002,4451.0,4450.9,23.04266732]
[1759897019142,0.002,4451.0,4450.9,23.22266732]
[1759897020547,0.01,4452.9,4450.9,20.97593071]
[1759897020840,0.01,4452.9,4451.9,2.5536]
[1759897021126,0.01,4452.9,4452.8,2.24577793]
[1759897021313,0.01,4452.9,4452.8,4.8172357]
[1759897021518,0.01,4452.9,4452.8,4.96107793]
[1759897021923,0.01,4452.9,4452.8,5.42006803]
[1759897023358,0.01,4452.9,4452.8,6.18666005]
[1759897023653,0.01,4452.9,4452.8,5.42006803]
[1759897024354,0.01,4452.9,4452.8,6.05366803]
[1759897024714,0.4791,4454.9,4452.9,2.8793275]
[1759897024715,0.20947633,4454.8,4452.9,2.8793275]
[1759897025026,0.20947633,4454.7,4453.8,2.24527369]
[1759897025220,0.20947633,4454.6,4453.8,4.79427369]
[1759897025434,0.20947633,4454.5,4453.8,4.79427369]
[1759897025749,0.4691,4454.4,4453.8,2.549]
[1759897025935,0.67853513,4454.3,4453.8,2.549]
[1759897026134,2.2448469,4454.7,4453.8,2.549]
[1759897026135,0.20943513,4454.2,4453.8,2.549]
[1759897026315,0.20943513,4454.1,4453.8,4.79427369]
[1759897026646,0.01,4454.9,4453.8,4.79427369]
[1759897026948,0.01,4454.9,4453.8,4.96057369]
[1759897027647,0.01,4454.9,4453.8,4.79427369]
[1759897027828,2.24477001,4454.8,4453.8,4.79427369]
[1759897028027,0.20944156,4454.7,4453.8,4.79427369]
[1759897028748,0.20944156,4454.6,4453.8,4.96057369]
[1759897028951,0.20944156,4454.5,4453.8,4.96057369]
[1759897029151,0.20944156,4454.4,4453.8,4.96057369]
[1759897029355,2.24481659,4454.8,4453.8,4.96057369]
[1759897029556,0.20925656,4454.7,4453.8,2.7153]
[1759897029753,0.20925656,4454.6,4453.8,4.79427369]
[1759897029969,0.01,4454.9,4453.8,4.79427369]
[1759897030169,2.25476454,4454.9,4453.8,4.79427369]
[1759897030358,0.4691,4454.7,4453.8,4.79427369]
[1759897030562,0.32125406,4454.6,4453.8,5.07257369]
[1759897030766,0.20925406,4454.5,4453.8,5.07257369]
[1759897030940,0.122,4454.9,4453.8,5.07257369]
[1759897031142,0.20922349,4454.8,4453.8,5.07257369]
[1759897033071,0.20922349,4454.8,4453.8,5.80436839]
[1759897034274,0.20922349,4454.8,4453.8,19.57257369]
[1759897034645,0.20922349,4454.8,4453.8,16.85727369]
[1759897034948,0.4691,4454.7,4453.8,19.40527369]
[1759897035271,0.20928242,4454.6,4453.8,19.40527369]
[1759897035478,0.20928242,4454.6,4453.8,19.57157369]
[1759897035673,0.20928242,4454.5,4453.8,19.57157369]
[1759897035879,2.83582196,4454.9,4453.8,2.66]
[1759897036048,0.20930588,4454.8,4453.8,4.90527369]
[1759897036447,2.45407725,4454.8,4453.8,4.90527369]
[1759897036675,0.20930588,4454.7,4453.8,4.90527369]
[1759897037079,2.24501039,4454.4,4453.8,0.112]
[1759897037280,0.01,4454.9,4453.8,8.10797173]
[1759897037508,0.01,4454.9,4453.8,9.25530347]
[1759897037802,0.01,4454.9,4453.8,8.85357173]
[1759897038034,0.21935013,4454.9,4453.8,8.85357173]
[1759897038330,0.20935013,4454.8,4453.8,8.85357173]
[1759897038507,0.20935013,4454.7,4453.8,8.85357173]
[1759897038811,0.01,4454.9,4453.8,8.85357173]
[1759897039475,0.01,4454.9,4453.8,3.15717369]
[1759897039816,0.01,4454.9,4453.8,8.85357173]
[1759897041030,0.01,4454.9,4453.8,22.71997173]
[1759897041306,0.01,4454.9,4453.8,4.90527369]
[1759897041307,0.4351,4454.8,4453.8,4.90527369]
[1759897041604,0.20934352,4454.7,4453.8,0.112]
[1759897041807,2.24512858,4454.1,4453.0,2.24566475]
[1759897041972,2.68037864,4453.8,4453.5,0.112]
[1759897042175,0.64460731,4453.7,4452.4,0.1663]
[1759897042378,0.20950731,4453.6,4452.9,0.112]
[1759897042706,2.45491939,4453.6,4453.0,2.548]
[1759897042915,0.64460731,4453.5,4451.1,0.01]
[1759897043083,0.112,4453.2,4452.5,0.112]
[1759897043273,0.20950731,4453.3,4452.6,2.548]
[1759897043472,0.20950731,4453.2,4452.8,0.001]
[1759897043673,0.20950731,4453.1,4452.9,2.548]
[1759897043874,0.20950731,4453.0,4452.9,2.548]
[1759897044504,0.20950731,4453.4,4452.9,2.548]
[1759897044671,0.20950731,4453.3,4452.9,2.548]
[1759897044894,2.35744603,4453.5,4452.9,2.548]
[1759897044895,0.20950731,4453.2,4452.9,2.548]
[1759897045089,0.5471,4453.5,4452.9,2.548]
[1759897045090,0.20950731,4453.1,4452.9,2.548]
[1759897045396,0.20950731,4453.0,4452.9,2.548]
[1759897045935,0.20950731,4453.4,4452.9,2.548]
[1759897046095,0.64460731,4453.3,4452.9,2.548]
[1759897046296,0.64460731,4453.2,4452.9,2.548]
[1759897046497,0.112,4453.5,4452.8,0.001]
[1759897046498,2.24567707,4453.0,4452.8,0.001]
[1759897046719,2.45523481,4452.9,4452.8,0.001]
[1759897046917,2.89033481,4452.9,4452.8,1.934]
[1759897047128,2.89033481,4452.9,4452.8,0.001]
[1759897047294,2.89033481,4452.9,4452.8,2.549]
[1759897047498,5.29365591,4452.9,4452.8,2.549]
[1759897047696,5.29365591,4452.9,4452.8,0.001]
[1759897047910,5.29365591,4452.9,4452.8,0.377]
[1759897048326,4.81033481,4452.9,4452.8,0.377]
[1759897048649,5.29349033,4452.9,4452.8,0.377]
[1759897049527,4.81033481,4452.9,4452.8,0.377]
[1759897049728,5.29333512,4452.9,4452.8,0.377]
[1759897050337,4.81033481,4452.9,4452.8,0.001]
[1759897050541,2.12950731,4452.9,4452.8,0.001]
[1759897051334,0.20950731,4452.9,4452.8,0.001]
[1759897051633,2.24532411,4453.7,4452.8,2.24677793]
[1759897051833,0.20948413,4453.6,4452.9,2.24572387]
[1759897052008,0.20948413,4453.6,4453.0,0.02245677]
[1759897052208,0.20948413,4453.5,4452.9,2.2456777]
[1759897052443,0.20948413,4453.4,4453.0,2.26811815]
[1759897052652,0.01,4453.9,4453.1,2.24558306]
[1759897052822,0.21945269,4453.9,4453.1,2.2455864]
[1759897053017,0.21945269,4453.9,4453.2,2.24557569]
[1759897053252,0.21945269,4453.9,4453.3,4.79351567]
[1759897053429,0.20944541,4453.8,4453.3,4.79351567]
[1759897053630,0.20944541,4453.7,4453.3,4.79351567]
[1759897053850,0.01,4453.9,4453.3,2.548]
[1759897054044,0.01,4453.9,4453.3,4.79350846]
[1759897055460,0.01,4453.9,4453.4,0.02245475]
[1759897055957,0.01,4453.9,4453.5,2.24538008]
[1759897056215,0.01,4453.9,4453.4,0.02245475]
[1759897056464,0.01,4453.9,4453.4,2.54622492]
[1759897056630,0.01,4453.9,4453.5,2.24537689]
[1759897056832,0.01,4453.9,4453.5,2.24542494]
[1759897057251,0.01,4453.9,4453.6,2.43412826]
[1759897057452,0.01,4453.9,4453.8,2.24527369]
[1759897057641,0.01,4453.9,4453.8,4.79327369]
[1759897058626,0.01,4453.9,4453.8,4.95957369]
[1759897059029,0.01,4453.9,4453.8,5.59317369]
[1759897059367,0.01,4453.9,4453.8,6.50022851]
[1759897062253,0.012,4453.9,4453.8,6.94272833]
[1759897064501,0.012,4453.9,4453.8,4.39472833]
[1759897064656,0.012,4453.9,4453.8,6.94272833]
[1759897064853,0.012,4453.9,4453.8,5.34777351]
[1759897065393,0.012,4453.9,4453.8,5.51407351]
[1759897067683,0.012,4453.9,4453.8,5.34777351]
[1759897067889,0.012,4453.9,4453.8,5.51407351]
[1759897070263,0.012,4453.9,4453.8,3.10149982]
[1759897070476,0.012,4453.9,4453.8,5.34677351]
[1759897071371,0.012,4453.9,4453.8,2.79977351]
[1759897071687,0.012,4453.9,4453.8,4.90427369]
[1759897073385,0.012,4453.9,4453.8,2.659]
[1759897073586,0.012,4453.9,4453.8,4.90427369]
[1759897073784,0.012,4453.9,4453.8,2.35727369]
[1759897073976,0.012,4453.9,4453.8,4.90427369]
[1759897074961,0.012,4453.9,4453.8,2.659]
[1759897075390,0.012,4453.9,4453.8,4.90427369]
[1759897075969,0.012,4453.9,4453.8,8.21894073]
[1759897076173,0.012,4453.9,4453.8,9.30998056]
[1759897079316,0.012,4453.9,4453.8,3.44831352]
[1759897079486,0.012,4453.9,4453.8,2.659]
[1759897079867,0.012,4453.9,4453.8,4.90427369]
[1759897080067,0.012,4453.9,4453.8,2.35727369]
[1759897080268,0.012,4453.9,4453.8,2.659]
[1759897080509,0.012,4453.9,4453.3,0.0336]
[1759897080709,0.012,4453.9,4453.7,2.24527927]
[1759897080892,0.012,4453.9,4453.8,2.547]
[1759897081277,0.012,4453.9,4453.8,4.79227369]
[1759897081489,0.012,4453.9,4453.8,2.547]
[1759897082203,0.012,4453.9,4453.8,4.79227369]
[1759897083289,0.012,4453.9,4453.8,4.95857369]
[1759897083483,0.012,4453.9,4453.8,6.10580387]
[1759897083719,0.012,4453.9,4453.8,3.69423018]
[1759897083922,0.012,4453.9,4453.8,4.90427369]
[1759897084301,0.012,4453.9,4453.8,2.35727369]
[1759897084492,0.012,4453.9,4453.8,4.90427369]
[1759897085319,0.012,4453.9,4453.8,2.35727369]
[1759897085498,0.012,4453.9,4453.8,5.55328922]
[1759897085699,0.012,4453.9,4453.8,6.16443649]
[1759897086852,0.01,4454.9,4453.8,6.16443649]
[1759897086853,0.01,4454.9,4454.0,0.6336]
[1759897087009,0.01,4454.9,4453.9,2.24522328]
[1759897087010,0.22022111,4454.9,4454.8,2.24476968]
[1759897087201,0.01,4454.9,4454.8,4.90376968]
[1759897087401,0.01,4454.9,4454.8,5.07006968]
[1759897087601,0.01,4454.9,4454.8,5.3367462]
[1759897089051,0.01,4454.9,4454.8,5.1704462]
[1759897089340,0.01,4454.9,4454.8,5.3367462]
[1759897095823,0.01,4454.9,4454.8,5.9703462]
[1759897097733,0.01,4454.9,4454.8,5.9693462]
[1759897099054,0.01,4454.9,4454.8,7.8893462]
[1759897099825,0.012,4454.9,4454.8,7.8893462]
[1759897100525,0.01,4455.9,4455.8,2.2442659]
[1759897100752,0.01,4455.9,4455.8,4.92470855]
[1759897100942,0.01,4455.9,4455.8,5.0685659]
[1759897101139,0.01,4455.9,4455.8,6.26715649]
[1759897101462,0.01,4455.9,4455.8,6.53105912]
[1759897102055,0.20953036,4457.3,4456.1,0.6336]
[1759897102266,0.12936136,4457.8,4456.8,2.24376234]
[1759897102564,0.12936136,4457.8,4456.8,4.81219996]
[1759897102565,0.2094256,4457.7,4456.8,4.81219996]
[1759897102771,0.2094256,4457.7,4456.8,4.95606234]
[1759897103129,0.2094256,4457.7,4456.8,4.78976234]
[1759897103763,0.2094256,4457.7,4456.8,4.95606234]
[1759897103926,0.6458256,4457.7,4456.6,0.4409655]
[1759897104131,0.2094256,4457.6,4456.8,2.24376234]
[1759897104327,0.2094256,4457.6,4456.8,4.78976234]
[1759897104525,2.45278598,4457.6,4456.8,4.78976234]
[1759897104731,0.2094256,4457.5,4456.8,4.78976234]
[1759897104967,2.67972113,4457.7,4456.8,4.78976234]
[1759897105172,0.20924136,4457.6,4456.8,4.78976234]
[1759897105340,0.20924136,4457.6,4456.8,4.95606234]
[1759897105662,0.12936136,4457.8,4456.8,4.95606234]
[1759897105845,0.20917241,4457.7,4456.8,4.95606234]
[1759897106445,0.20917241,4457.7,4456.8,4.78976234]
[1759897107345,0.20917241,4457.7,4456.8,4.95606234]
[1759897108174,0.20917241,4457.7,4456.8,5.72162737]
[1759897110482,0.4364,4457.5,4456.8,4.78876234]
[1759897110781,0.12936136,4457.8,4456.8,4.78876234]
[1759897110982,0.20902593,4457.7,4456.8,4.78876234]
[1759897111159,0.20902593,4457.7,4456.8,4.95506234]
[1759897111354,0.20902593,4457.7,4456.8,5.06706234]
[1759897111755,0.20902593,4457.7,4456.8,0.112]
[1759897112084,0.4364,4457.4,4456.8,3.42976234]
[1759897112616,0.4364,4457.4,4456.8,1.186]
[1759897112956,0.4364,4457.4,4456.8,3.42976234]
[1759897113283,0.12936136,4457.8,4456.8,3.42976234]
[1759897113485,2.45253698,4457.7,4456.8,1.186]
[1759897113657,2.88898226,4457.6,4456.8,3.42976234]
[1759897113858,0.20922167,4457.5,4456.8,3.42976234]
[1759897115056,0.20929628,4457.4,4456.8,3.42976234]
[1759897115382,0.12936136,4457.8,4456.8,3.59606234]
[1759897115549,0.209387,4457.7,4456.8,3.59606234]
[1759897115952,0.209387,4457.7,4456.8,3.42976234]
[1759897116148,0.209387,4457.7,4456.8,1.186]
[1759897116411,0.4364,4457.6,4456.8,3.42976234]
[1759897116706,0.209387,4457.5,4456.8,4.78876234]
[1759897117484,0.209387,4457.5,4456.8,4.95506234]
[1759897117698,0.209387,4457.4,4456.8,4.95506234]
[1759897117876,0.12936136,4457.8,4456.8,4.95506234]
[1759897118071,0.20949618,4457.7,4456.8,4.95506234]
[1759897120006,0.20949618,4457.7,4456.6,0.45038784]
[1759897120307,0.20949618,4457.7,4456.7,2.545]
[1759897120308,0.4679,4457.3,4456.7,2.545]
[1759897120516,2.45307242,4457.2,4456.5,2.24389347]
[1759897120685,0.12936136,4457.8,4456.6,2.545]
[1759897120686,0.20949618,4457.1,4456.6,2.545]
[1759897120873,0.20949618,4457.0,4456.6,2.545]
[1759897121074,0.4679,4456.8,4455.8,0.001]
[1759897121302,0.21949618,4456.9,4455.8,0.001]
[1759897121303,0.20949618,4456.7,4456.0,2.24413674]
[1759897121518,0.20949618,4456.6,4456.3,2.24399617]
[1759897121680,0.20949618,4456.5,4456.4,2.545]
[1759897121997,0.01,4456.9,4456.4,2.545]
[1759897122205,0.21949618,4456.9,4456.4,2.545]
[1759897123476,2.13949618,4456.9,4456.4,2.545]
[1759897123673,0.67739618,4456.8,4456.3,0.112]
[1759897123890,0.67739618,4456.8,4456.4,2.545]
[1759897123891,2.45330886,4456.7,4456.4,2.545]
[1759897124089,0.67763207,4456.6,4456.4,2.545]
[1759897124401,0.67763207,4456.5,4456.3,0.112]
[1759897124608,0.20973207,4456.4,4456.3,0.112]
[1759897124815,0.67763207,4456.4,4456.3,2.657]
[1759897126312,0.67763207,4456.4,4456.3,0.112]
[1759897126514,0.67763207,4456.4,4456.3,2.657]
[1759897126714,2.2440162,4456.3,4455.8,0.001]
[1759897126917,0.20973207,4456.2,4455.9,2.545]
[1759897127231,0.67763207,4456.1,4455.9,2.545]
[1759897127528,0.67763207,4456.0,4455.8,0.001]
[1759897127830,0.20973207,4455.9,4455.8,0.001]
[1759897128129,2.9218476,4455.9,4455.8,0.001]
[1759897128316,2.9218476,4455.9,4455.8,2.546]
[1759897128517,0.67763207,4455.9,4455.8,2.546]
[1759897128718,2.9218476,4455.9,4455.8,2.546]
[1759897129118,0.20973207,4455.9,4455.8,2.546]
[1759897129318,0.112,4456.0,4455.8,2.546]
[1759897129630,0.4679,4455.9,4455.8,2.546]
[1759897129836,2.9218476,4455.9,4455.8,2.546]
[1759897130004,0.67763207,4455.9,4455.8,2.546]
[1759897131008,0.20973207,4455.9,4455.8,2.546]
[1759897131545,0.4733,4455.9,4455.8,2.546]
[1759897131748,0.68303207,4455.9,4455.8,2.546]
[1759897132155,2.9272476,4455.9,4455.8,0.001]
[1759897132325,0.68303207,4455.9,4455.8,2.546]
[1759897132661,0.20973207,4455.9,4455.8,2.546]
[1759897132830,0.112,4456.5,4455.8,4.9022659]
[1759897133031,1.92,4456.3,4455.8,0.113]
[1759897133232,2.9270857,4456.2,4455.9,2.545]
[1759897133465,0.68298083,4456.1,4455.9,2.545]
[1759897133623,0.68298083,4456.0,4455.9,2.545]
[1759897133823,0.64938083,4456.0,4455.9,2.545]
[1759897135123,0.17608083,4456.0,4455.9,2.545]
[1759897135461,0.112,4456.5,4455.9,2.545]
[1759897135462,0.112,4456.5,4456.0,2.24416517]
[1759897135927,0.112,4456.5,4455.9,4.78921385]
[1759897136127,0.112,4456.5,4455.9,2.545]
[1759897136323,2.35592271,4456.5,4455.9,2.545]
[1759897136529,4.27592271,4456.5,4455.9,2.545]
[1759897136734,0.112,4456.5,4456.1,2.24407366]
[1759897137258,0.112,4456.5,4456.1,2.24411021]
[1759897137461,0.4853,4456.9,4456.0,2.266592]
[1759897137636,0.112,4456.8,4456.1,0.112]
[1759897137841,2.35577492,4456.8,4456.1,0.112]
[1759897138159,4.27577492,4456.8,4456.1,0.112]
[1759897138531,2.24382304,4456.7,4456.1,0.112]
[1759897138730,4.16390223,4456.6,4456.1,0.112]
[1759897138954,1.92,4456.6,4456.2,2.545]
[1759897139161,0.4733,4456.6,4456.2,2.545]
[1759897139680,0.4733,4456.5,4456.2,2.545]
[1759897139832,0.4733,4456.4,4456.2,2.545]
[1759897140164,0.4733,4456.3,4456.2,2.545]
[1759897140334,2.032,4456.8,4456.2,2.545]
[1759897140335,0.112,4456.8,4456.2,2.545]
[1759897140531,0.112,4456.8,4456.2,4.78905706]
[1759897140936,0.112,4456.8,4456.3,0.02244014]
[1759897141256,0.012,4456.9,4456.6,0.112]
[1759897141585,0.112,4456.8,4456.7,2.545]
[1759897141791,0.012,4456.9,4456.7,2.545]
[1759897141934,0.012,4456.9,4456.8,2.26619996]
[1759897142140,0.012,4456.9,4456.8,3.14920517]
[1759897142372,0.012,4456.9,4456.8,3.12676755]
[1759897143645,0.012,4456.9,4456.8,2.96046755]
[1759897145081,0.012,4456.9,4456.8,3.12676755]
[1759897145275,0.012,4456.9,4456.8,3.14920517]
[1759897146654,0.012,4456.9,4456.8,3.78280517]
[1759897148278,0.012,4456.9,4456.8,18.28280517]
[1759897148439,0.012,4456.9,4456.8,18.26036755]
[1759897149454,0.012,4456.9,4456.8,21.40450933]
[1759897149966,0.012,4456.9,4456.8,23.32450933]
[1759897151149,0.012,4456.9,4456.7,2.657]
[1759897151150,0.012,4456.9,4456.7,0.112]
[1759897151351,0.012,4456.9,4456.8,8.12064174]
[1759897151562,0.012,4456.9,4456.8,8.73180412]
[1759897151768,0.012,4456.9,4456.8,24.32936535]
[1759897151963,0.012,4456.9,4456.8,21.35152357]
[1759897152170,0.012,4456.9,4456.8,24.49566535]
[1759897152567,1e-08,4456.9,4456.8,26.41566535]
[1759897152973,1e-08,4456.9,4456.8,23.87166535]
[1759897153177,1e-08,4456.9,4456.8,23.27152357]
[1759897153386,1e-08,4456.9,4456.8,18.80752357]
[1759897153569,1e-08,4456.9,4456.8,21.35152357]
[1759897154188,1e-08,4456.9,4456.8,3.34132357]
[1759897154393,1e-08,4456.9,4456.8,4.78776234]
[1759897154766,1e-08,4456.9,4456.4,2.24396373]
[1759897155085,1e-08,4456.9,4456.5,2.544]
[1759897155256,1e-08,4456.9,4456.6,2.544]
[1759897156058,1e-08,4456.9,4455.6,20.56285777]
[1759897156254,0.4733,4456.8,4455.9,2.544]
[1759897156458,1e-08,4456.9,4455.9,2.544]
[1759897156687,1e-08,4456.9,4456.0,2.24416517]
[1759897156890,1e-08,4456.9,4456.2,2.24402448]
[1759897157089,1e-08,4456.9,4456.1,2.544]
[1759897157090,1e-08,4456.9,4456.3,4.78800636]
[1759897157387,1e-08,4456.9,4456.5,2.24391099]
[1759897157600,1e-08,4456.9,4456.6,2.544]
[1759897157959,0.4733,4456.8,4456.6,2.544]
[1759897158158,0.4733,4456.7,4456.6,2.544]
[1759897158366,0.4733,4456.7,4455.8,0.1673]
[1759897158367,0.4733,4456.7,4455.8,0.001]
[1759897158594,0.4733,4456.7,4456.0,2.24412112]
[1759897158761,1e-08,4456.9,4456.7,2.2437781]
[1759897158961,1e-08,4456.9,4456.8,2.56643762]
[1759897159162,1e-08,4456.9,4456.8,4.78776234]
[1759897159389,1e-08,4456.9,4456.8,5.2107061]
[1759897159602,1e-08,4456.9,4456.8,0.25664376]
[1759897159766,1e-08,4456.9,4456.8,2.544]
[1759897160095,1e-08,4456.9,4456.3,2.24398507]
[1759897160262,1e-08,4456.9,4455.8,0.4843]
[1759897160263,0.47020001,4456.9,4456.4,2.544]
[1759897160458,1e-08,4456.9,4456.4,2.544]
[1759897160763,1e-08,4456.9,4456.7,2.24381222]
[1759897160959,1e-08,4456.9,4456.0,0.1663]
[1759897161170,1e-08,4456.9,4456.1,2.2441148]
[1759897161374,1e-08,4456.9,4456.7,0.112]
[1759897161588,1e-08,4456.9,4456.8,2.544]
[1759897161972,1e-08,4456.9,4456.2,0.1663]
[1759897162173,1e-08,4456.9,4456.5,2.24390336]
[1759897162377,1e-08,4456.9,4456.6,4.7878607]
[1759897162620,1e-08,4456.9,4455.8,0.1673]
[1759897162919,0.4702,4456.8,4455.8,0.001]
[1759897163206,1e-08,4456.9,4456.0,2.24411652]
[1759897163380,1e-08,4456.9,4455.8,0.001]
[1759897163381,0.20960139,4456.9,4456.1,2.24408931]
[1759897163573,0.20960139,4456.9,4456.8,2.24376234]
[1759897163808,1e-08,4456.9,4456.8,4.95406234]
[1759897163968,1e-08,4456.9,4456.8,2.544]
[1759897164514,1e-08,4456.9,4456.8,4.78776234]
[1759897165202,1e-08,4456.9,4456.8,4.95406234]
[1759897165481,1e-08,4456.9,4456.8,4.78776234]
[1759897167400,1e-08,4456.9,4456.8,2.544]
[1759897167707,1e-08,4456.9,4455.3,16.421]
[1759897167904,1e-08,4456.9,4456.8,2.24376234]
[1759897168069,1e-08,4456.9,4456.8,2.78500623]
[1759897168271,1e-08,4456.9,4456.8,5.02876857]
[1759897168781,1e-08,4456.9,4456.8,2.78500623]
[1759897169002,1e-08,4456.9,4456.8,2.544]
[1759897169202,1e-08,4456.9,4456.8,8.73180412]
[1759897169510,1e-08,4456.9,4456.8,10.65180412]
[1759897169698,0.01,4457.9,4457.5,0.6336]
[1759897169899,0.01,4457.9,4457.8,2.243259]
[1759897170227,1e-08,4458.9,4458.6,2.24284295]